bitfinex-derivatives/quotes_BTCF0:USTF0_20250710
["timestamp","ask_amount","ask_price","bid_price","bid_amount"]
[1752126916318,0.800664,111160.0,111150.0,0.8843202]
[1752126916624,1.1061089,111160.0,111150.0,0.5565053]
[1752126919023,1.1061089,111160.0,111150.0,0.7971502]
[1752126919823,0.865464,111160.0,111150.0,0.7971502]
[1752126920024,0.865464,111160.0,111150.0,0.8071502]
[1752126920528,1.1061089,111160.0,111150.0,0.8071502]
[1752126921528,1.1061089,111160.0,111150.0,0.7771502]
[1752126921924,0.6248191,111160.0,111150.0,0.7771502]
[1752126922119,0.865464,111160.0,111150.0,0.5198753]
[1752126922319,0.6471491,111160.0,111150.0,0.95744]
[1752126922520,1.14048574,111160.0,111150.0,1.1373153]
[1752126922925,1.7458789,111160.0,111150.0,0.34]
[1752126923124,1.75792674,111160.0,111150.0,0.5365053]
[1752126923832,1.51728184,111160.0,111150.0,0.7771502]
[1752126924019,1.27691694,111160.0,111150.0,0.8018202]
[1752126924224,1.51756184,111160.0,111150.0,0.8018202]
[1752126924526,0.71998274,111160.0,111150.0,0.8018202]
[1752126924724,0.71998274,111160.0,111150.0,0.8337202]
[1752126924926,0.71998274,111160.0,111150.0,0.8649202]
[1752126925126,0.71998274,111160.0,111150.0,0.8349202]
[1752126925624,0.89984184,111160.0,111150.0,0.8349202]
[1752126926132,0.65919694,111160.0,111150.0,0.8349202]
[1752126926431,0.89984184,111160.0,111150.0,0.8349202]
[1752126926632,0.89984184,111160.0,111150.0,0.8849202]
[1752126926835,0.65919694,111160.0,111150.0,0.88469284]
[1752126927026,0.47933784,111160.0,111150.0,0.88469284]
[1752126928430,0.65919694,111160.0,111150.0,0.88469284]
[1752126929134,0.65919694,111160.0,111150.0,1.50257284]
[1752126929329,0.47933784,111160.0,111150.0,1.47137284]
[1752126929537,0.47933784,111160.0,111150.0,1.50317284]
[1752126929830,0.44603784,111160.0,111150.0,1.50317284]
[1752126930232,0.43067784,111160.0,111150.0,1.50317284]
[1752126930434,0.43067784,111160.0,111150.0,1.14317284]
[1752126930732,0.43067784,111160.0,111150.0,1.48317284]
[1752126931534,0.43067784,111160.0,111150.0,1.47317284]
[1752126931734,0.39917784,111160.0,111150.0,1.47317284]
[1752126933037,0.39917784,111160.0,111150.0,1.71359038]
[1752126934834,0.39817784,111160.0,111150.0,1.71459038]
[1752126935034,0.03737784,111160.0,111150.0,2.23531838]
[1752126935833,4e-08,111160.0,111150.0,2.73531838]
[1752126936038,0.38145381,111170.0,111160.0,0.1798591]
[1752126936039,0.02065381,111170.0,111160.0,0.1798591]
[1752126936240,0.02065381,111170.0,111160.0,0.85626945]
[1752126936436,0.02065381,111170.0,111160.0,1.05934145]
[1752126937138,0.02065381,111170.0,111160.0,1.03934145]
[1752126937338,0.02065381,111170.0,111160.0,1.04034145]
[1752126937935,0.02065381,111170.0,111160.0,1.54034145]
[1752126938142,0.02065381,111170.0,111160.0,1.54134145]
[1752126938330,0.02065381,111170.0,111160.0,1.90214145]
[1752126941537,0.02065381,111170.0,111160.0,1.91214145]
[1752126942646,0.02065381,111170.0,111160.0,1.73222945]
[1752126943441,0.02065381,111170.0,111160.0,1.91214145]
[1752126944542,0.02065381,111170.0,111160.0,1.91514145]
[1752126944742,0.02065381,111170.0,111160.0,1.91714145]
[1752126945142,0.02065381,111170.0,111160.0,1.92714145]
[1752126946249,0.002,111170.0,111160.0,1.92714145]
[1752126946747,1e-07,111170.0,111160.0,2.20174145]
[1752126950249,1e-07,111170.0,111160.0,1.89714145]
[1752126951349,1e-07,111170.0,111160.0,1.65672391]
[1752126951559,1e-07,111170.0,111160.0,1.89714145]
[1752126955954,1e-07,111170.0,111160.0,2.19174145]
[1752126956462,1e-07,111170.0,111160.0,1.88174145]
[1752126956761,1e-07,111170.0,111160.0,2.23174145]
[1752126957161,1e-07,111170.0,111160.0,2.33174145]
[1752126957364,1e-07,111170.0,111160.0,2.30174145]
[1752126957557,1e-07,111170.0,111160.0,2.54215899]
[1752126957763,1e-07,111170.0,111160.0,2.64215899]
[1752126958365,1e-07,111170.0,111160.0,2.40174145]
[1752126958661,1e-07,111170.0,111160.0,2.10714145]
[1752126959655,1e-07,111170.0,111160.0,2.34755899]
[1752126960362,1e-07,111170.0,111160.0,2.10714145]
[1752126960558,0.4247,111190.0,111180.0,0.1798268]
[1752126960765,0.0313,111190.0,111180.0,1.43509071]
[1752126961064,0.0313,111190.0,111180.0,2.23919071]
[1752126961560,0.0313,111190.0,111180.0,2.13919071]
[1752126961771,0.0636,111190.0,111180.0,2.13919071]
[1752126961969,0.0636,111190.0,111180.0,2.10919071]
[1752126962273,0.0636,111190.0,111180.0,2.11019071]
[1752126962476,0.0636,111190.0,111180.0,2.61019071]
[1752126963074,0.0636,111190.0,111180.0,2.57719071]
[1752126963367,0.0646,111190.0,111180.0,2.57719071]
[1752126963874,0.0646,111190.0,111180.0,2.5860571]
[1752126964074,0.0636,111190.0,111180.0,2.5860571]
[1752126964969,0.0636,111190.0,111180.0,2.10522202]
[1752126965170,0.0636,111190.0,111180.0,2.5860571]
[1752126965473,0.0636,111190.0,111180.0,2.5560571]
[1752126966475,0.0636,111190.0,111180.0,2.2360571]
[1752126966774,0.0636,111190.0,111180.0,2.5660571]
[1752126969877,0.0636,111190.0,111180.0,2.2052571]
[1752126970078,0.0636,111190.0,111180.0,2.5760571]
[1752126971580,0.0636,111190.0,111180.0,2.5789571]
[1752126972679,0.0636,111190.0,111180.0,2.68686024]
[1752126973476,0.0636,111190.0,111180.0,2.5789571]
[1752126975183,0.0636,111190.0,111180.0,2.6189571]
[1752126976085,0.0636,111190.0,111180.0,2.61888488]
[1752126976683,0.0636,111190.0,111180.0,2.62888488]
[1752126978585,0.0636,111190.0,111180.0,2.26808488]
[1752126978788,0.0636,111190.0,111180.0,2.62888488]
[1752126979985,0.0636,111190.0,111180.0,2.26888488]
[1752126980186,0.0636,111190.0,111180.0,2.63888488]
[1752126980483,0.0636,111190.0,111180.0,2.74678802]
[1752126981482,0.0636,111190.0,111180.0,2.37678802]
[1752126981685,0.0636,111190.0,111180.0,2.75678802]
[1752126982888,0.0636,111190.0,111180.0,2.72388802]
[1752126983091,0.0636,111190.0,111180.0,2.61598488]
[1752126983382,0.0636,111190.0,111180.0,1.75712734]
[1752126983584,0.0636,111190.0,111180.0,1.96678734]
[1752126983585,0.07885,111190.0,111180.0,1.96678734]
[1752126984585,0.07885,111190.0,111180.0,1.46678734]
[1752126984990,0.07885,111190.0,111180.0,1.08678734]
[1752126985191,0.07885,111190.0,111180.0,1.43678734]
[1752126986490,0.07885,111190.0,111180.0,1.44678734]
[1752126989386,0.07885,111190.0,111180.0,1.55469048]
[1752126989991,0.07885,111190.0,111180.0,1.19469048]
[1752126990198,0.07885,111190.0,111180.0,1.51469048]
[1752126990688,0.0636,111190.0,111180.0,1.51469048]
[1752126991085,0.0313,111190.0,111180.0,1.57629048]
[1752126991289,0.0313,111190.0,111180.0,1.81670802]
[1752126991591,0.0313,111190.0,111180.0,1.83670802]
[1752126991791,0.396,111200.0,111190.0,0.1798104]
[1752126991991,0.47722098,111200.0,111190.0,0.75684794]
[1752126992191,0.47722098,111200.0,111190.0,0.77975794]
[1752126993388,0.47722098,111200.0,111190.0,1.39607794]
[1752126993592,0.39695098,111200.0,111190.0,1.39607794]
[1752126993794,0.39695098,111200.0,111190.0,1.46037794]
[1752126994289,0.3628,111210.0,111200.0,0.1797942]
[1752126994494,0.39694871,111210.0,111200.0,1.12445928]
[1752126994795,0.39694871,111210.0,111200.0,0.88404174]
[1752126994990,0.39694871,111210.0,111200.0,0.52404174]
[1752126995184,0.39694871,111210.0,111200.0,0.90520778]
[1752126995494,0.39794871,111210.0,111200.0,0.90520778]
[1752126995688,0.39994871,111210.0,111200.0,0.90520778]
[1752126996093,0.39694871,111210.0,111200.0,1.40520778]
[1752126996285,0.39694871,111210.0,111200.0,1.40620778]
[1752126996492,0.39694871,111210.0,111200.0,1.41620778]
[1752126996693,0.39694871,111210.0,111200.0,1.41614423]
[1752126997797,0.39694871,111210.0,111200.0,1.48711461]
[1752126998097,0.03614871,111210.0,111200.0,1.48711461]
[1752127000097,0.03614871,111210.0,111200.0,1.44711461]
[1752127000799,0.11511871,111210.0,111200.0,1.99933461]
[1752127001292,0.11511871,111210.0,111200.0,1.99929461]
[1752127001597,0.09914871,111210.0,111200.0,1.98929461]
[1752127001898,0.09914871,111210.0,111200.0,1.48929461]
[1752127002698,0.09914871,111210.0,111200.0,1.48924365]
[1752127005099,0.09914871,111210.0,111200.0,1.53924365]
[1752127005401,0.09914871,111210.0,111200.0,1.56934365]
[1752127005698,0.09914871,111210.0,111200.0,1.56934077]
[1752127007701,0.065,111210.0,111200.0,1.56934077]
[1752127011105,0.08097,111210.0,111200.0,1.56934077]
[1752127011501,0.08097,111210.0,111200.0,1.51934077]
[1752127012004,0.065,111210.0,111200.0,1.51934077]
[1752127012205,0.08097,111210.0,111200.0,1.51934077]
[1752127014107,0.08097,111210.0,111200.0,1.50544239]
[1752127014307,0.08097,111210.0,111200.0,1.51933147]
[1752127015208,0.08097,111210.0,111200.0,1.53933147]
[1752127015412,0.08097,111210.0,111200.0,1.50923147]
[1752127015600,0.44177,111210.0,111200.0,1.50923147]
[1752127015797,0.44177,111210.0,111200.0,0.89275147]
[1752127016002,0.46082052,111210.0,111200.0,1.50835147]
[1752127016509,0.46082052,111210.0,111200.0,1.49835147]
[1752127020102,0.46082052,111210.0,111200.0,1.55835147]
[1752127022216,0.46082052,111210.0,111200.0,1.49851354]
[1752127022815,0.46082052,111210.0,111200.0,1.7384245]
[1752127025616,0.46082052,111210.0,111200.0,1.7984245]
[1752127026612,0.46082052,111210.0,111200.0,1.7784245]
[1752127027717,0.46082052,111210.0,111200.0,1.8102245]
[1752127028918,0.46082052,111210.0,111200.0,1.8406245]
[1752127030023,0.46082052,111210.0,111200.0,1.4806245]
[1752127030211,0.46082052,111210.0,111200.0,1.8206245]
[1752127031522,0.46082052,111210.0,111200.0,1.8406245]
[1752127035021,0.46082052,111210.0,111200.0,1.4806245]
[1752127035222,0.49490711,111210.0,111200.0,1.8006245]
[1752127036611,0.49490711,111210.0,111200.0,1.8106245]
[1752127040430,0.49509902,111210.0,111200.0,1.8106245]
[1752127040617,0.13429902,111210.0,111200.0,1.8106245]
[1752127040824,0.49509902,111210.0,111200.0,1.8106245]
[1752127041523,0.49509902,111210.0,111200.0,1.8006245]
[1752127045024,0.49509902,111210.0,111200.0,1.8206245]
[1752127045420,0.49509902,111210.0,111200.0,1.92852764]
[1752127045825,0.49509902,111210.0,111200.0,1.44819914]
[1752127046023,0.49509902,111210.0,111200.0,1.92852764]
[1752127046526,0.49509902,111210.0,111200.0,1.90852764]
[1752127046826,0.49509902,111210.0,111200.0,1.8006245]
[1752127051034,0.49509902,111210.0,111200.0,1.320296]
[1752127051234,0.49509902,111210.0,111200.0,1.8006245]
[1752127051535,0.49509902,111210.0,111200.0,1.8606245]
[1752127051836,0.91504127,111210.0,111200.0,0.734296]
[1752127052023,0.9150461,111210.0,111200.0,1.349816]
[1752127052224,0.9150461,111210.0,111200.0,1.58998025]
[1752127052430,0.9150461,111210.0,111200.0,1.56998025]
[1752127052736,0.9150461,111210.0,111200.0,1.8101445]
[1752127053236,0.67488185,111210.0,111200.0,1.8101445]
[1752127053540,0.67488185,111210.0,111200.0,1.4501445]
[1752127053938,0.67488185,111210.0,111200.0,0.969816]
[1752127054132,0.67488185,111210.0,111200.0,1.20998025]
[1752127054328,0.9150461,111210.0,111200.0,1.20998025]
[1752127054640,0.9150461,111210.0,111200.0,1.16156025]
[1752127055635,0.9150461,111210.0,111200.0,0.305876]
[1752127055837,0.9150461,111210.0,111200.0,0.08602153]
[1752127055838,1.53834035,111210.0,111200.0,0.08602153]
[1752127056035,2.33370835,111210.0,111200.0,0.08602153]
[1752127056340,2.0935441,111210.0,111200.0,0.08602153]
[1752127056533,2.0935441,111210.0,111200.0,0.01505115]
[1752127056839,2.0935441,111210.0,111200.0,0.19484535]
[1752127058240,2.0955441,111210.0,111200.0,0.19484535]
[1752127058639,2.0955441,111210.0,111200.0,0.19384535]
[1752127058840,2.0965441,111210.0,111200.0,0.19384535]
[1752127061936,1.3749441,111210.0,111200.0,0.19384535]
[1752127062147,2.0965441,111210.0,111200.0,0.01405115]
[1752127062333,2.8268726,111210.0,111170.0,0.55862084]
[1752127062538,1.036645,111180.0,111170.0,0.19389555]
[1752127062733,1.7761653,111180.0,111160.0,0.11673425]
[1752127062949,0.1798588,111160.0,111150.0,0.33453073]
[1752127063138,1.0209873,111160.0,111150.0,0.34966073]
[1752127063334,1.0853873,111160.0,111150.0,0.96518073]
[1752127063740,0.84522305,111160.0,111150.0,1.20534498]
[1752127064042,0.84522305,111160.0,111150.0,1.09744184]
[1752127064944,0.84549695,111160.0,111150.0,0.85727759]
[1752127065746,0.84549695,111160.0,111150.0,0.85827759]
[1752127065935,0.84549695,111160.0,111150.0,0.84314759]
[1752127066135,0.86118695,111160.0,111150.0,0.89035119]
[1752127066345,0.86118695,111160.0,111150.0,0.89135119]
[1752127067244,0.88028426,111160.0,111150.0,0.65747929]
[1752127067547,1.49592426,111160.0,111150.0,0.01892929]
[1752127067854,1.51825426,111160.0,111150.0,0.00379929]
[1752127068943,1.51925426,111160.0,111150.0,0.00279929]
[1752127069345,1.51825426,111160.0,111150.0,0.00279929]
[1752127069550,1.52125426,111160.0,111150.0,0.00279929]
[1752127070050,1.55739485,111160.0,111150.0,0.00279929]
[1752127071250,1.55739485,111160.0,111150.0,0.18267409]
[1752127071753,1.55739485,111160.0,111150.0,0.18167409]
[1752127072750,1.55939485,111160.0,111150.0,0.18167409]
[1752127073150,1.55939485,111160.0,111150.0,0.00179929]
[1752127074051,1.55933899,111160.0,111150.0,0.00179929]
[1752127074457,1.55933899,111160.0,111150.0,0.01585965]
[1752127076358,1.55933899,111160.0,111150.0,0.19573445]
[1752127078062,1.55933899,111160.0,111150.0,0.01585965]
[1752127078765,1.55933899,111160.0,111150.0,0.00179929]
[1752127079062,1.55933899,111160.0,111150.0,0.18167409]
[1752127079663,1.55933899,111160.0,111150.0,0.00179929]
[1752127080463,1.55933899,111160.0,111150.0,0.18167409]
[1752127081162,1.55933899,111160.0,111150.0,0.00179929]
[1752127081562,1.55933899,111160.0,111150.0,0.18167409]
[1752127082360,1.55933899,111160.0,111150.0,0.01584437]
[1752127083763,1.55933899,111160.0,111150.0,0.19571927]
[1752127084558,1.55933899,111160.0,111150.0,0.18167419]
[1752127084963,1.92018799,111160.0,111150.0,0.18167419]
[1752127085460,1.92018799,111160.0,111150.0,0.1957275]
[1752127085659,1.92020066,111160.0,111150.0,0.1957275]
[1752127086760,2.16068793,111160.0,111150.0,0.1957275]
[1752127088064,2.16068793,111160.0,111150.0,0.19573457]
[1752127091270,2.24170329,111160.0,111150.0,0.19573457]
[1752127092071,2.24170329,111160.0,111150.0,0.01585967]
[1752127093171,2.16068793,111160.0,111150.0,0.01585967]
[1752127094265,2.26870841,111160.0,111150.0,0.01585967]
[1752127105378,2.26870841,111160.0,111150.0,0.19573447]
[1752127107780,1.54710841,111160.0,111150.0,0.19573447]
[1752127107972,2.26870841,111160.0,111150.0,0.19573447]
[1752127108174,2.16068793,111160.0,111150.0,0.19573447]
[1752127109182,2.24167558,111160.0,111150.0,0.19573447]
[1752127110181,2.24167558,111160.0,111150.0,0.01585967]
[1752127114984,2.24167558,111160.0,111150.0,0.19573447]
[1752127117885,2.24167558,111160.0,111150.0,0.18167409]
[1752127118183,2.24167558,111160.0,111150.0,0.19573447]
[1752127118883,1.52007558,111160.0,111150.0,0.19573447]
[1752127119083,2.24167558,111160.0,111150.0,0.19573447]
[1752127127890,2.24117973,111160.0,111150.0,0.01585967]
[1752127131792,2.24117973,111160.0,111150.0,0.19573447]
[1752127132493,2.24117973,111160.0,111150.0,0.19573448]
[1752127134791,2.24117973,111160.0,111150.0,0.01585968]
[1752127135196,2.24026475,111160.0,111150.0,0.01585968]
[1752127135400,2.24026475,111160.0,111150.0,0.19573448]
[1752127135894,1.14369933,111160.0,111150.0,0.19573448]
[1752127136090,2.22429475,111160.0,111150.0,0.43619719]
[1752127136295,2.22429475,111160.0,111150.0,0.45278719]
[1752127136487,2.22429475,111160.0,111150.0,0.21232448]
[1752127136998,2.21929475,111160.0,111150.0,0.21232448]
[1752127137299,2.22029475,111160.0,111150.0,0.21232448]
[1752127140206,1.60493475,111160.0,111150.0,0.21232448]
[1752127140399,2.22021475,111160.0,111150.0,0.21232448]
[1752127140594,2.1392271,111160.0,111150.0,0.21232448]
[1752127140794,2.1392271,111160.0,111150.0,0.19826409]
[1752127141101,2.1392271,111160.0,111150.0,0.21232438]
[1752127142811,2.1168971,111160.0,111150.0,0.21232438]
[1752127144105,2.1168971,111160.0,111150.0,0.45278709]
[1752127144307,2.1168971,111160.0,111150.0,0.48298709]
[1752127146310,2.19788475,111160.0,111150.0,0.48298709]
[1752127148814,2.22021475,111160.0,111150.0,0.48298709]
[1752127149110,2.22021475,111160.0,111150.0,0.24252438]
[1752127153106,2.22021475,111160.0,111150.0,0.21232438]
[1752127153308,2.22021475,111160.0,111150.0,0.03244958]
[1752127153602,2.22021475,111160.0,111150.0,0.21232448]
[1752127156216,1.60493475,111160.0,111150.0,0.21232448]
[1752127156415,2.22005475,111160.0,111150.0,0.21232448]
[1752127163625,1.49845475,111160.0,111150.0,0.21232448]
[1752127163820,2.22005475,111160.0,111150.0,0.21232448]
[1752127166226,2.19772475,111160.0,111150.0,0.19573448]
[1752127166724,2.19772475,111160.0,111150.0,0.19573449]
[1752127167923,1.47612475,111160.0,111150.0,0.19573449]
[1752127168124,2.19772475,111160.0,111150.0,0.19573449]
[1752127168324,2.22005475,111160.0,111150.0,0.19573449]
[1752127172521,2.22005475,111160.0,111150.0,0.18167419]
[1752127172726,2.22005475,111160.0,111150.0,0.19573449]
[1752127174426,2.21981475,111160.0,111150.0,0.19573449]
[1752127176525,2.21981475,111160.0,111150.0,0.21130449]
[1752127179226,0.85742053,111160.0,111150.0,0.4361972]
[1752127179427,1.39127288,111160.0,111150.0,0.5371972]
[1752127179931,0.95629158,111160.0,111150.0,0.5371972]
[1752127180128,1.19675429,111160.0,111150.0,0.5371972]
[1752127180522,1.19675429,111160.0,111150.0,0.5381972]
[1752127180727,1.19575429,111160.0,111150.0,0.5391972]
[1752127187235,1.19575429,111160.0,111150.0,0.53919571]
[1752127189642,1.17665698,111160.0,111150.0,0.53919571]
[1752127190038,0.93619427,111160.0,111150.0,0.53919571]
[1752127190243,1.17665698,111160.0,111150.0,0.53919571]
[1752127191138,1.17665698,111160.0,111150.0,0.48406571]
[1752127191345,1.50164969,111160.0,111150.0,0.243603]
[1752127192138,1.47931969,111160.0,111150.0,0.243603]
[1752127193538,1.50164969,111160.0,111150.0,0.213303]
[1752127194038,1.50164969,111160.0,111150.0,0.45376571]
[1752127194745,1.26118698,111160.0,111150.0,0.45376571]
[1752127195935,1.26118698,111160.0,111150.0,0.4397069]
[1752127196136,1.26118698,111160.0,111150.0,0.45376633]
[1752127198044,0.81853557,111160.0,111150.0,0.47629633]
[1752127198248,1.56698427,111160.0,111150.0,0.53869633]
[1752127198446,1.55079427,111160.0,111150.0,0.53869633]
[1752127199146,1.79125698,111160.0,111150.0,0.53869633]
[1752127200553,1.55079427,111160.0,111150.0,0.53869633]
[1752127200754,1.79125698,111160.0,111150.0,0.53869633]
[1752127201051,1.82221698,111160.0,111150.0,0.53869633]
[1752127201643,1.82221698,111160.0,111150.0,0.51661633]
[1752127202460,1.58175427,111160.0,111150.0,0.51661633]
[1752127202651,1.82221698,111160.0,111150.0,0.51661633]
[1752127202852,1.20765698,111160.0,111150.0,0.48471633]
[1752127203158,1.85547698,111160.0,111150.0,0.48471634]
[1752127204247,1.13387698,111160.0,111150.0,0.48471634]
[1752127204555,1.85547698,111160.0,111150.0,0.48471634]
[1752127207951,1.85547698,111160.0,111150.0,0.50724634]
[1752127209657,1.06109828,111160.0,111150.0,0.50724634]
[1752127209955,1.67553828,111160.0,111150.0,0.50724634]
[1752127210546,1.67553828,111160.0,111150.0,0.53764634]
[1752127211046,0.03473557,111160.0,111150.0,1.72254905]
[1752127212657,0.03473557,111160.0,111150.0,1.70848961]
[1752127212859,0.03473557,111160.0,111150.0,1.72254706]
[1752127215262,0.5737437,111170.0,111160.0,0.1798586]
[1752127215456,0.6083379,111170.0,111160.0,0.74649147]
[1752127215958,0.4443442,111170.0,111160.0,0.74649147]
[1752127216159,0.4443442,111170.0,111160.0,0.77699147]
[1752127216364,0.4284942,111170.0,111160.0,0.77699147]
[1752127216570,0.4443442,111170.0,111160.0,0.77699147]
[1752127217065,0.4453442,111170.0,111160.0,0.77699147]
[1752127217973,0.68580691,111170.0,111160.0,0.77699147]
[1752127218467,0.4122442,111170.0,111160.0,0.77699147]
[1752127219167,0.65270691,111170.0,111160.0,0.74649147]
[1752127219367,0.71590691,111170.0,111160.0,0.74649147]
[1752127219968,0.71590691,111170.0,111160.0,0.77809147]
[1752127221076,0.71590691,111170.0,111160.0,0.29716605]
[1752127221277,0.71590691,111170.0,111160.0,0.77809147]
[1752127221473,0.4754442,111170.0,111160.0,0.77809147]
[1752127223673,0.89574941,111170.0,111160.0,0.20993605]
[1752127223873,0.91807941,111170.0,111160.0,0.19391605]
[1752127225482,0.93701548,111170.0,111160.0,0.19391605]
[1752127226981,0.69655277,111170.0,111160.0,0.19391605]
[1752127227286,0.93701548,111170.0,111160.0,0.19391605]
[1752127232782,1.29781548,111170.0,111160.0,0.19391605]
[1752127237888,1.29770605,111170.0,111160.0,0.19391605]
[1752127243494,1.29770605,111170.0,111160.0,0.20902605]
[1752127244294,1.29770605,111170.0,111160.0,0.44948876]
[1752127244489,1.29770605,111170.0,111160.0,0.20902605]
[1752127244696,1.29770605,111170.0,111160.0,0.44948876]
[1752127249198,1.05724334,111170.0,111160.0,0.44948876]
[1752127249502,1.00012727,111170.0,111160.0,0.70695927]
[1752127249705,0.93692727,111170.0,111160.0,0.73695927]
[1752127249908,0.77268477,111170.0,111160.0,0.77005927]
[1752127250604,0.95252677,111170.0,111160.0,0.28913385]
[1752127250801,0.95252677,111170.0,111160.0,0.77005927]
[1752127250998,0.95252677,111170.0,111160.0,0.77005907]
[1752127251504,0.77268477,111170.0,111160.0,1.15005907]
[1752127251804,0.03703362,111170.0,111160.0,1.70132178]
[1752127251999,0.3608,111180.0,111170.0,0.179842]
[1752127252302,0.3608,111180.0,111170.0,1.67434467]
[1752127252892,0.3608,111180.0,111170.0,1.69813467]
[1752127253596,0.3638,111180.0,111170.0,1.69813467]
[1752127253796,0.3638,111180.0,111170.0,1.69813319]
[1752127254407,0.3638,111180.0,111170.0,2.05893319]
[1752127254408,0.005,111180.0,111170.0,2.05893319]
[1752127255207,0.005,111180.0,111170.0,2.10893319]
[1752127256606,0.005,111180.0,111170.0,2.08893319]
[1752127256806,0.005,111180.0,111170.0,1.73893319]
[1752127257003,0.005,111180.0,111170.0,1.90893319]
[1752127257903,0.005,111180.0,111170.0,1.73893319]
[1752127258099,0.005,111180.0,111170.0,2.06893319]
[1752127260510,0.003,111180.0,111170.0,2.07093319]
[1752127261506,0.003,111180.0,111170.0,2.09093319]
[1752127261723,0.5406105,111190.0,111180.0,0.1798259]
[1752127262013,0.3608,111190.0,111180.0,0.78069709]
[1752127262409,0.37676,111190.0,111180.0,0.78069709]
[1752127262814,0.37676,111190.0,111180.0,0.78169709]
[1752127263114,0.37676,111190.0,111180.0,0.78269709]
[1752127263313,0.37676,111190.0,111180.0,0.78269575]
[1752127263619,0.5565697,111190.0,111180.0,0.78269575]
[1752127264003,0.59066478,111190.0,111180.0,0.78269575]
[1752127264203,0.5565697,111190.0,111180.0,0.30177033]
[1752127264513,0.5565697,111190.0,111180.0,0.78269575]
[1752127265417,0.5565697,111190.0,111180.0,0.79187483]
[1752127266116,0.5565697,111190.0,111180.0,0.76709483]
[1752127267117,0.5565697,111190.0,111180.0,0.79187483]
[1752127267417,0.5565697,111190.0,111180.0,0.79187481]
[1752127268718,0.37676,111190.0,111180.0,0.79187481]
[1752127269018,0.5565697,111190.0,111180.0,0.79187481]
[1752127269225,0.37676,111190.0,111180.0,0.86491636]
[1752127270120,0.5565697,111190.0,111180.0,0.86491636]
[1752127271020,0.5873697,111190.0,111180.0,0.86491636]
[1752127271920,0.62147449,111190.0,111180.0,0.83181636]
[1752127272121,0.65207449,111190.0,111180.0,0.83181636]
[1752127280021,0.8925372,111190.0,111180.0,0.35112094]
[1752127280221,0.8925372,111190.0,111180.0,0.79192636]
[1752127280423,0.8925372,111190.0,111180.0,0.80726636]
[1752127281729,0.8925372,111190.0,111180.0,0.51856365]
[1752127281928,0.8925372,111190.0,111180.0,0.51856387]
[1752127282232,0.65207449,111190.0,111180.0,0.51856387]
[1752127282423,0.65207449,111190.0,111180.0,0.53390387]
[1752127282621,0.8925372,111190.0,111180.0,0.53390387]
[1752127282827,0.8925372,111190.0,111180.0,1.13244387]
[1752127286237,0.65207449,111190.0,111180.0,1.13244387]
[1752127286437,0.8925372,111190.0,111180.0,1.13244387]
[1752127287238,0.8925372,111190.0,111180.0,1.37290658]
[1752127288234,0.5317372,111190.0,111180.0,1.37290658]
[1752127288540,0.65207449,111190.0,111180.0,1.37290658]
[1752127288742,0.8925372,111190.0,111180.0,1.37290658]
[1752127288934,0.8925372,111190.0,111180.0,1.39689658]
[1752127292848,0.65207449,111190.0,111180.0,1.39689658]
[1752127293050,0.8925372,111190.0,111180.0,1.39689658]
[1752127293244,0.8925372,111190.0,111180.0,1.15623387]
[1752127296751,0.8925372,111190.0,111180.0,0.54255387]
[1752127296950,1.5311572,111190.0,111180.0,0.01605463]
[1752127297148,1.5311572,111190.0,111180.0,0.19588063]
[1752127301453,1.5311572,111190.0,111180.0,0.01605463]
[1752127302045,1.77161991,111190.0,111180.0,0.01605463]
[1752127302348,1.77161991,111190.0,111180.0,0.01605675]
[1752127303945,1.77161991,111190.0,111180.0,0.01505675]
[1752127304150,1.77561991,111190.0,111180.0,0.01505675]
[1752127305353,1.5351572,111190.0,111180.0,0.01505675]
[1752127305755,1.37568214,111190.0,111180.0,0.01505675]
[1752127305955,1.84064756,111190.0,111180.0,0.01505675]
[1752127307255,1.84064756,111190.0,111180.0,0.01405675]
[1752127307553,1.14877991,111190.0,111180.0,0.01405675]
[1752127307754,1.76257991,111190.0,111180.0,0.01405675]
[1752127308652,1.84356756,111190.0,111180.0,0.01405675]
[1752127309054,1.22976756,111190.0,111180.0,0.01405675]
[1752127309252,1.76257991,111190.0,111180.0,0.01405675]
[1752127309943,1.76265991,111190.0,111180.0,0.01405675]
[1752127312258,1.4360172,111190.0,111180.0,0.44996536]
[1752127312462,1.4359772,111190.0,111180.0,0.48246536]
[1752127312660,1.4607172,111190.0,111180.0,0.48246536]
[1752127312859,1.4930172,111190.0,111180.0,0.48246536]
[1752127313062,1.5234172,111190.0,111180.0,0.48246536]
[1752127313360,1.5204172,111190.0,111180.0,0.48246536]
[1752127313556,1.5214172,111190.0,111180.0,0.48246536]
[1752127313861,1.5194172,111190.0,111180.0,0.48246536]
[1752127314757,1.5194172,111190.0,111180.0,0.24200265]
[1752127316753,1.4551172,111190.0,111180.0,0.72292807]
[1752127317058,1.4869172,111190.0,111180.0,0.48246536]
[1752127319158,1.24645449,111190.0,111180.0,0.48246536]
[1752127319359,1.4869172,111190.0,111180.0,0.48246536]
[1752127320564,1.1261172,111190.0,111180.0,0.48246536]
[1752127320762,1.8477172,111190.0,111180.0,0.48246536]
[1752127321259,0.93851449,111190.0,111180.0,0.74684807]
[1752127321467,1.56819449,111190.0,111180.0,0.77892807]
[1752127321665,1.8086572,111190.0,111180.0,0.77892807]
[1752127321857,1.8086572,111190.0,111180.0,0.53846536]
[1752127322857,1.56819449,111190.0,111180.0,0.29800265]
[1752127323053,1.56619449,111190.0,111180.0,0.29800265]
[1752127323362,1.56519449,111190.0,111180.0,0.29800265]
[1752127324862,1.54923449,111190.0,111180.0,0.49846534]
[1752127325062,1.54923449,111190.0,111180.0,0.53828534]
[1752127326158,0.93551449,111190.0,111180.0,0.53828534]
[1752127326360,0.75570479,111190.0,111180.0,1.1445136]
[1752127326666,0.93551459,111190.0,111180.0,0.52422975]
[1752127326863,0.75570479,111190.0,111180.0,0.52422975]
[1752127327564,0.93551459,111190.0,111180.0,0.52422975]
[1752127327966,0.93551459,111190.0,111180.0,0.52522975]
[1752127329170,0.93551459,111190.0,111180.0,0.52622975]
[1752127329567,0.95147459,111190.0,111180.0,0.52622975]
[1752127329762,0.93551459,111190.0,111180.0,0.52622975]
[1752127330162,0.95147459,111190.0,111180.0,0.52622975]
[1752127330361,0.93551459,111190.0,111180.0,0.52622975]
[1752127330566,0.95147459,111190.0,111180.0,0.52622975]
[1752127334770,0.75570479,111190.0,111180.0,0.52622975]
[1752127334977,0.75570479,111190.0,111180.0,1.0865136]
[1752127335173,0.75570479,111190.0,111180.0,1.0965136]
[1752127335678,0.7216,111190.0,111180.0,1.0965136]
[1752127335976,0.3608,111190.0,111180.0,1.0965136]
[1752127336377,0.3608,111200.0,111190.0,0.3146592]
[1752127336579,0.3946594,111200.0,111190.0,1.55182305]
[1752127337172,0.3608,111200.0,111190.0,1.55182305]
[1752127337372,0.3608,111200.0,111190.0,1.25574305]
[1752127338778,0.3608,111200.0,111190.0,1.62574305]
[1752127339585,0.3608,111200.0,111190.0,1.25674305]
[1752127339974,0.3608,111200.0,111190.0,1.25774305]